bitfinex-derivatives/quotes_ETHF0:USTF0_20240920
["timestamp","ask_amount","ask_price","bid_price","bid_amount"]
[1726812889957,3.07,2542.5,2542.3,0.39332]
[1726812890454,3.46329,2542.5,2542.3,0.39332]
[1726812893057,3.07,2542.5,2542.3,0.39332]
[1726812893259,3.46329,2542.5,2542.3,0.39332]
[1726812893758,3.07,2542.5,2542.3,0.39331]
[1726812895053,0.39328,2542.6,2542.3,0.39331]
[1726812895248,0.39328,2542.6,2542.2,4.0107]
[1726812895558,0.39328,2542.6,2542.3,0.39331]
[1726812895758,3.84547,2542.7,2542.4,0.39329]
[1726812895962,3.84547,2542.7,2542.5,0.3843]
[1726812896360,3.07,2542.7,2542.6,0.39327]
[1726812896563,3.07,2542.7,2542.6,0.77177]
[1726812897454,3.07,2542.7,2542.6,0.3785]
[1726812900656,3.46326,2542.7,2542.6,0.3785]
[1726812901056,3.46326,2542.7,2542.2,3.6011]
[1726812901057,0.98319,2542.6,2542.2,3.6011]
[1726812901264,3.46332,2542.3,2542.2,0.3933]
[1726812901467,3.07,2542.3,2542.2,0.3933]
[1726812902267,3.07,2542.3,2542.1,0.7806]
[1726812903261,3.07,2542.3,2542.1,1.1613]
[1726812904059,3.07,2542.3,2542.1,1.55465]
[1726812904664,3.07,2542.3,2542.1,1.1613]
[1726812906259,0.39334,2542.2,2542.0,4.198]
[1726812906463,3.07,2542.1,2542.0,4.198]
[1726812906968,3.07,2542.1,2541.8,0.39339]
[1726812909261,3.46335,2542.1,2541.7,0.39341]
[1726812909666,3.46335,2542.1,2541.8,0.39339]
[1726812909667,0.4116,2542.0,2541.8,0.39339]
[1726812909967,3.07,2542.1,2541.8,0.39339]
[1726812910267,3.07,2542.1,2541.6,4.3982]
[1726812910564,3.07,2542.1,2541.8,0.39339]
[1726812911066,3.07,2542.1,2541.9,0.39338]
[1726812911257,3.46334,2542.2,2542.0,1.1863]
[1726812913870,3.07,2542.2,2542.0,1.1863]
[1726812914669,3.46334,2542.2,2542.0,1.1863]
[1726812914967,3.07,2542.2,2542.0,1.1863]
[1726812919173,3.46334,2542.2,2542.0,1.1863]
[1726812919373,3.07,2542.2,2542.0,1.1863]
[1726812920267,3.46334,2542.2,2541.9,3.2078]
[1726812920462,3.46334,2542.2,2542.0,0.7733]
[1726812921774,0.39335,2542.1,2542.0,0.7733]
[1726812921979,3.07,2542.1,2542.0,0.7733]
[1726812922469,3.46335,2542.1,2542.0,0.7733]
[1726812922663,3.07,2542.1,2542.0,0.7733]
[1726812922870,3.46335,2542.1,2542.0,0.7733]
[1726812923069,0.39337,2542.0,2541.8,0.3787]
[1726812923277,0.78847,2542.0,2541.8,0.7913]
[1726812923573,3.07,2541.9,2541.6,3.2078]
[1726812923771,0.39341,2541.7,2541.6,0.4126]
[1726812924070,3.46341,2541.8,2541.6,0.4126]
[1726812924468,3.07,2541.8,2541.6,0.4126]
[1726812924675,3.4634,2541.8,2541.6,0.4126]
[1726812925170,0.39341,2541.7,2541.6,0.4126]
[1726812925362,0.39341,2541.7,2541.2,1.03177947]
[1726812925363,0.39346,2541.4,2541.0,8.43757947]
[1726812925563,3.07,2541.3,2541.1,0.7766]
[1726812926473,0.3828,2541.6,2541.1,0.7766]
[1726812926679,3.46343,2541.6,2541.3,3.2078]
[1726812926882,3.46343,2541.6,2541.4,0.3785]
[1726812927575,0.39344,2541.5,2541.4,0.3785]
[1726812928174,3.46344,2541.6,2541.4,0.3785]
[1726812928377,0.39344,2541.5,2541.3,3.2078]
[1726812929574,3.07,2541.4,2541.3,3.2078]
[1726812929778,3.07,2541.4,2541.1,0.7766]
[1726812930371,3.46346,2541.4,2541.1,0.7766]
[1726812930576,3.07,2541.4,2541.1,0.7766]
[1726812930782,3.46346,2541.4,2541.1,0.7766]
[1726812932886,3.46347,2541.4,2541.1,0.7766]
[1726812933082,3.46349,2541.2,2541.1,0.7766]
[1726812933880,3.46349,2541.2,2540.8,0.39355]
[1726812934078,3.46349,2541.2,2540.9,1.1652]
[1726812934781,3.46349,2541.2,2540.0,1.53144947]
[1726812934782,0.98385,2540.9,2540.0,1.53144947]
[1726812934987,0.775,2540.8,2540.4,0.3881]
[1726812935187,3.07,2540.5,2540.4,0.3881]
[1726812936284,3.07,2540.5,2540.0,3.2078]
[1726812936484,3.07,2540.5,2540.1,1.1853]
[1726812936986,3.07,2540.5,2540.1,1.57896]
[1726812937180,3.07,2540.5,2540.1,1.1853]
[1726812937375,3.07,2540.5,2540.3,3.2078]
[1726812938783,3.435,2541.3,2540.4,7.006]
[1726812938984,3.07,2541.3,2540.8,3.2078]
[1726812939204,3.07,2541.3,2540.9,1.155]
[1726812939387,3.07,2541.3,2541.1,0.3935]
[1726812939591,0.39343,2541.6,2541.1,0.3935]
[1726812939592,3.07,2541.5,2541.1,0.3935]
[1726812940079,3.46344,2541.5,2541.0,0.39351]
[1726812940281,3.07,2541.3,2541.1,0.39351]
[1726812940482,3.07,2541.3,2541.0,0.39351]
[1726812940682,3.07,2541.3,2541.0,0.39352]
[1726812941184,3.07,2541.3,2541.1,0.3935]
[1726812941388,3.07,2541.3,2541.0,0.39351]
[1726812941688,3.07,2541.1,2540.9,1.155]
[1726812944394,3.07,2541.2,2540.9,1.54853]
[1726812944690,0.79467,2541.4,2540.9,1.155]
[1726812944691,3.4712,2541.4,2540.9,1.155]
[1726812944893,3.4712,2541.4,2541.0,0.39351]
[1726812945189,3.4712,2541.4,2540.9,1.155]
[1726812945190,3.07,2541.2,2540.9,1.54853]
[1726812945393,0.39348,2541.3,2540.9,1.54853]
[1726812945592,3.07,2541.1,2540.9,1.54853]
[1726812946095,3.07,2541.1,2540.9,1.155]
[1726812946488,3.07,2541.1,2540.9,1.54854]
[1726812946791,3.07,2541.0,2540.8,0.39354]
[1726812946987,3.07,2541.2,2540.9,1.1608]
[1726812947188,3.07,2541.2,2541.0,0.39352]
[1726812947391,3.07,2541.2,2541.1,0.39351]
[1726812947592,3.07,2541.2,2540.9,1.55433]
[1726812947985,3.07,2541.2,2540.9,1.1608]
[1726812947986,3.46349,2541.2,2540.9,1.1608]
[1726812948186,3.4811,2541.2,2540.9,1.1608]
[1726812948392,3.8746,2541.2,2540.9,1.1608]
[1726812949892,3.07,2541.0,2540.9,1.1608]
[1726812950896,3.07,2541.0,2540.4,3.2078]
[1726812951090,3.07,2541.0,2540.5,0.3936]
[1726812951091,3.07,2540.6,2540.5,0.3936]
[1726812951690,0.39354,2540.9,2540.5,0.3936]
[1726812951993,3.07,2540.8,2540.4,1.1881]
[1726812952186,3.07,2540.8,2540.5,0.39359]
[1726812952998,3.07,2540.6,2540.4,1.1881]
[1726812953293,3.46359,2540.6,2540.4,1.1881]
[1726812953700,3.4639,2540.6,2540.4,0.794]
[1726812953893,3.85749,2540.6,2539.9,4.198]
[1726812954202,3.85749,2540.6,2539.8,1.1856]
[1726812954203,3.07,2540.4,2540.2,0.7856]
[1726812954391,3.07,2540.4,2540.2,1.1856]
[1726812955103,3.46362,2540.4,2540.2,1.1856]
[1726812955297,3.07,2540.4,2540.2,1.1856]
[1726812956192,3.46362,2540.4,2540.2,1.1856]
[1726812956399,0.39363,2540.3,2540.2,1.1856]
[1726812956602,3.07,2540.4,2540.2,1.1856]
[1726812956798,3.46362,2540.4,2540.2,1.1856]
[1726812959501,3.07,2540.4,2540.2,1.1856]
[1726812960195,3.46362,2540.4,2540.2,0.7794]
[1726812960399,0.398,2540.3,2540.2,0.7794]
[1726812961302,0.3939,2540.6,2540.2,0.7794]
[1726812961501,3.07,2540.5,2540.2,0.7794]
[1726812961705,3.46361,2540.5,2540.2,0.7794]
[1726812962004,3.4636,2540.5,2540.2,0.7794]
[1726812962308,3.07,2540.5,2540.2,0.7794]
[1726812962498,3.4636,2540.5,2540.2,0.7794]
[1726812963906,3.07,2540.6,2540.2,0.7794]
[1726812964208,3.07,2540.6,2540.4,0.3936]
[1726812964511,3.07,2540.5,2540.3,0.4011]
[1726812965504,3.07,2540.5,2540.4,0.39361]
[1726812965705,3.07,2540.5,2540.3,0.79472]
[1726812967002,3.07,2540.5,2540.3,0.4011]
[1726812967197,3.07,2540.5,2540.3,0.79472]
[1726812967398,3.07,2540.5,2540.3,0.4011]
[1726812967804,3.07,2540.5,2540.3,0.79473]
[1726812968001,3.07,2540.5,2540.4,0.39361]
[1726812968201,3.07,2540.7,2540.5,0.3936]
[1726812968403,3.07,2540.7,2540.4,0.3936]
[1726812968712,3.07,2540.7,2540.4,0.39361]
[1726812970212,3.46358,2540.7,2540.3,0.4011]
[1726812970505,3.07,2540.5,2540.3,0.4011]
[1726812971209,0.3936,2540.5,2540.3,0.4011]
[1726812971399,3.07,2540.4,2540.2,0.7794]
[1726812971597,3.4465,2540.4,2540.2,0.7794]
[1726812972110,3.84012,2540.4,2540.2,0.7794]
[1726812972408,3.4465,2540.4,2540.2,0.7794]
[1726812974013,3.84012,2540.4,2540.2,0.7794]
[1726812975612,0.39367,2540.1,2539.8,3.2078]
[1726812975812,3.4465,2540.4,2539.8,4.36531]
[1726812975813,3.07,2539.9,2539.8,4.36531]
[1726812976106,3.07,2539.9,2539.8,3.9716]
[1726812978409,3.46369,2539.9,2539.8,3.2078]
[1726812978999,3.46369,2539.9,2539.4,0.39376]
[1726812979000,0.39372,2539.8,2539.4,0.39376]
[1726812979201,3.07,2539.6,2539.3,1.1939]
[1726812979510,3.07,2539.4,2539.2,3.2078]
[1726812979707,3.07,2539.4,2539.2,0.3785]
[1726812980399,3.07,2539.4,2539.3,0.39378]
[1726812980608,0.3965,2539.5,2539.3,0.39378]
[1726812980609,3.07,2539.5,2539.3,0.39378]
[1726812981411,3.07,2539.7,2539.3,7.1454]
[1726812981611,3.07,2539.9,2539.3,3.2078]
[1726812981815,3.07,2539.7,2539.6,0.39374]
[1726812982008,3.07,2539.7,2539.3,3.2078]
[1726812982212,3.07,2539.7,2539.6,0.39374]
[1726812983716,4.6934,2540.3,2539.6,16.2154]
[1726812983717,3.07,2540.3,2539.6,16.2154]
[1726812983913,3.07,2540.3,2540.1,0.39365]
[1726812984108,3.07,2540.3,2540.2,0.7911]
[1726812984511,3.07,2540.5,2540.3,0.39363]
[1726812984713,3.07,2540.5,2540.2,1.18474]
[1726812984912,3.07,2540.5,2540.2,0.7911]
[1726812985215,3.07,2540.4,2540.2,0.7911]
[1726812986620,3.07,2540.4,2540.0,0.39367]
[1726812986916,3.07,2540.2,2540.0,0.3815]
[1726812987323,3.07,2540.2,2540.0,0.77518]
[1726812987819,3.07,2540.2,2540.0,0.77517]
[1726812988422,3.07,2540.2,2540.0,0.3815]
[1726812989121,0.39366,2540.1,2540.0,0.3815]
[1726812989323,0.39366,2540.1,2539.8,0.7958]
[1726812989621,0.39366,2540.1,2539.3,3.42483995]
[1726812989622,3.07,2539.9,2539.3,7.4058]
[1726812989820,3.07,2539.9,2539.5,0.39374]
[1726812990025,3.07,2539.8,2539.5,0.39374]
[1726812990920,3.07,2539.8,2539.6,0.39373]
[1726812991227,3.07,2539.8,2539.5,0.39374]
[1726812992339,3.07,2539.8,2539.4,1.1665]
[1726812992534,3.07,2539.8,2539.4,1.56026]
[1726812992735,3.46371,2539.8,2539.4,1.1665]
[1726812993034,4.26871,2539.8,2539.4,1.1665]
[1726812993237,4.26871,2539.8,2539.4,1.56027]
[1726812993737,3.875,2539.8,2539.4,1.56027]
[1726812994734,3.875,2539.8,2539.5,0.39375]
[1726812994933,3.875,2539.8,2539.4,1.56026]
[1726812995533,3.875,2539.8,2539.5,0.39375]
[1726812995938,4.26871,2539.8,2539.4,1.1665]
[1726812996132,4.26871,2539.8,2539.4,1.56027]
[1726812996833,3.46365,2540.0,2539.4,1.1665]
[1726812997036,3.85095,2540.0,2539.4,1.1665]
[1726812997438,0.39365,2539.9,2539.5,0.39371]
[1726812998235,3.4573,2540.0,2539.4,1.1665]
[1726812998436,0.39365,2539.9,2539.5,0.3937]
[1726812998742,3.07,2539.6,2539.4,1.17302]
[1726812998930,3.07,2539.8,2539.5,0.39371]
[1726813000233,3.4573,2540.0,2539.4,1.1741]
[1726813000441,3.46361,2540.2,2539.9,3.2078]
[1726813000736,0.39362,2540.2,2540.0,0.3781]
[1726813000935,3.4613,2540.1,2540.0,0.3781]
[1726813002241,3.4613,2540.1,2539.9,0.3935]
[1726813003638,3.85492,2540.1,2539.9,0.3935]
[1726813003839,3.4613,2540.1,2539.7,0.3781]
[1726813004046,3.07,2539.9,2539.7,0.77177]
[1726813004445,3.07,2539.9,2539.7,0.3781]
[1726813005750,3.46365,2539.9,2539.7,0.3781]
[1726813006147,3.07,2539.9,2539.7,0.3781]
[1726813006651,3.46366,2539.9,2539.7,0.3781]
[1726813006943,3.07,2539.9,2539.7,0.3781]
[1726813007145,3.46366,2539.9,2539.7,0.3781]
[1726813007357,3.87996,2539.9,2539.7,0.3781]
[1726813009349,3.87995,2539.9,2539.7,0.3781]
[1726813009845,3.4863,2539.9,2539.7,0.3781]
[1726813010345,3.87996,2539.9,2539.7,0.3781]
[1726813010749,3.87996,2539.9,2539.5,0.7947]
[1726813011052,3.07,2539.7,2539.5,1.1741]
[1726813011248,3.07,2539.7,2539.3,3.2078]
[1726813011449,0.4163,2539.9,2539.3,3.2078]
[1726813011450,3.07,2539.4,2539.3,3.2078]
[1726813013543,3.07,2539.4,2539.2,0.7704]
[1726813014354,3.07,2539.4,2539.2,1.16415]
[1726813014551,3.4633,2539.6,2539.2,1.16415]
[1726813015050,3.07,2539.6,2539.2,1.16415]
[1726813015244,3.4637,2539.6,2539.2,1.16415]
[1726813016845,3.07,2539.4,2539.2,0.7704]
[1726813017349,3.07,2539.6,2539.2,1.16415]
[1726813017550,3.4637,2539.6,2539.2,1.16415]
[1726813018453,3.4637,2539.6,2539.2,0.7704]
[1726813018758,3.07,2539.6,2539.2,1.16415]
[1726813019147,3.4637,2539.6,2539.2,0.7704]
[1726813019653,0.39371,2539.5,2539.2,0.7704]
[1726813020150,3.07,2539.4,2539.2,0.7704]
[1726813021453,3.4637,2539.6,2539.2,1.16416]
[1726813021849,3.07,2539.6,2539.2,1.16416]
[1726813022053,3.4637,2539.6,2539.2,1.16416]
[1726813022259,0.39372,2539.5,2539.2,0.7704]
[1726813022557,3.07,2539.4,2539.1,0.4108]
[1726813022851,3.07,2539.2,2539.0,0.4154]
[1726813023053,0.39378,2539.1,2539.0,0.4154]
[1726813023259,0.39378,2539.1,2538.9,0.411]
[1726813023457,3.07,2539.1,2538.9,0.411]
[1726813023757,3.46378,2539.1,2538.9,0.411]
[1726813023958,3.07,2539.1,2538.9,0.411]
[1726813024161,3.46378,2539.1,2538.9,0.411]
[1726813024354,3.07,2539.1,2538.9,0.411]
[1726813025560,3.07,2539.3,2538.9,0.80481]
[1726813026347,5.0841,2539.7,2538.9,0.80481]
[1726813026348,3.8601,2539.7,2539.0,3.2078]
[1726813026553,0.274,2540.2,2539.4,0.39372]
[1726813026861,3.8676,2540.2,2539.7,3.2078]
[1726813027055,3.8676,2540.2,2539.8,0.4066]
[1726813027364,3.07,2540.0,2539.8,0.4066]
[1726813027546,3.07,2540.0,2539.9,0.3834]
[1726813030862,3.07,2540.0,2539.8,0.4066]
[1726813031160,3.07,2540.0,2539.7,3.2078]
[1726813031361,3.07,2539.8,2539.7,3.2078]
[1726813032161,7.5018,2539.9,2539.0,1.11998904]
[1726813032362,3.07,2540.0,2539.4,0.3809]
[1726813032658,3.46361,2540.2,2539.5,4.0128]
[1726813032863,3.07,2540.2,2539.6,0.3937]
[1726813033055,3.46361,2540.2,2539.5,4.0128]
[1726813033264,3.07,2540.2,2539.6,0.3937]
[1726813033459,0.39362,2540.1,2539.5,4.01281]
[1726813033858,3.46361,2540.2,2539.5,4.01281]
[1726813034366,3.46361,2540.2,2539.6,0.3937]
[1726813034563,3.46361,2540.2,2539.7,0.3996]
[1726813035857,3.07,2540.2,2539.7,0.79328]
[1726813036059,3.46361,2540.2,2539.7,0.3996]
[1726813037558,3.2078,2540.3,2539.7,0.3996]
[1726813037760,6.2778,2540.6,2539.8,6.2778]
[1726813038062,3.07,2540.8,2540.1,3.2078]
[1726813038261,3.46351,2540.9,2540.4,3.2078]
[1726813038469,0.39352,2540.8,2540.5,0.771]
[1726813038863,0.22727686,2541.1,2540.6,0.4173]
[1726813038864,3.46353,2540.7,2540.6,0.4173]
[1726813039062,6.2778,2540.7,2540.1,3.2078]
[1726813039364,0.98371,2541.0,2540.2,0.8274]
[1726813039365,0.39356,2540.5,2540.2,0.8274]
[1726813039857,3.0798,2540.6,2540.2,0.8274]
[1726813040058,3.07,2540.6,2540.2,0.8274]
[1726813040257,3.07,2540.6,2540.2,1.22101]
[1726813042263,0.39355,2540.6,2540.2,0.8274]
[1726813042464,3.07,2540.5,2540.2,1.221]
[1726813042663,3.07,2540.5,2540.2,0.8274]
[1726813043071,3.07,2540.5,2540.2,1.221]
[1726813043768,3.07,2540.5,2540.2,0.8274]
[1726813044169,3.07,2540.5,2540.2,1.22101]
[1726813044772,3.07,2540.3,2540.2,0.8274]
[1726813046674,3.07,2540.5,2540.2,0.8274]
[1726813046875,3.46357,2540.5,2540.2,0.8274]
[1726813047259,3.07,2540.5,2540.2,0.8274]
[1726813047771,3.46356,2540.5,2540.2,0.8274]
[1726813048779,3.07,2540.5,2540.2,1.22099]
[1726813049373,3.07,2540.5,2540.2,1.221]
[1726813049570,3.07,2540.5,2540.3,0.39358]
[1726813049969,3.46353,2540.7,2540.3,0.39358]
[1726813050871,3.3977,2541.0,2540.4,3.2078]
[1726813050872,3.07,2540.9,2540.4,3.2078]
[1726813051071,3.3977,2541.0,2540.5,0.4028]
[1726813051072,3.07,2540.7,2540.5,0.4028]
[1726813051271,3.07,2540.7,2540.2,0.8274]
[1726813051576,3.07,2540.4,2540.3,0.4052]
[1726813051873,3.46357,2540.4,2540.3,0.4052]
[1726813052080,0.40325,2540.6,2540.3,0.4052]
[1726813052264,3.47325,2540.6,2540.3,0.4052]
[1726813052870,3.2078,2540.7,2540.3,0.4052]
[1726813053066,3.07,2540.8,2540.4,0.39356]
[1726813053381,3.07,2540.8,2540.4,0.39357]
[1726813053563,0.1997,2541.0,2540.3,0.4052]
[1726813053769,3.07,2540.9,2540.3,0.4052]
[1726813053973,3.4635,2540.9,2540.3,0.4052]
[1726813054672,3.4635,2540.9,2540.5,0.39355]
[1726813054872,3.4635,2540.9,2540.6,0.3827]
[1726813055171,0.0098,2541.0,2540.3,0.4052]
[1726813055172,0.39355,2540.6,2540.3,0.4052]
[1726813055373,3.07,2540.4,2540.3,0.4052]
[1726813055574,3.07,2540.4,2539.8,3.60146]
[1726813055779,3.07,2540.1,2539.9,0.81075]
[1726813055968,3.07,2540.2,2540.0,0.3827]
[1726813056169,3.07,2540.2,2540.0,0.77633]
[1726813056369,3.07,2540.2,2540.0,0.3827]
[1726813056580,3.07,2540.2,2540.1,0.3944]
[1726813056971,3.07,2540.4,2540.2,0.39361]
[1726813057272,3.07,2540.4,2540.2,0.3936]
[1726813057579,3.07,2540.4,2540.3,0.4171]
[1726813059479,3.46358,2540.4,2540.1,0.3944]
[1726813059675,3.07,2540.2,2540.1,0.3944]
[1726813061374,0.0098,2540.6,2540.1,0.3944]
[1726813061585,3.07,2540.2,2540.1,0.3944]
[1726813064882,3.07,2540.4,2540.1,0.3944]
[1726813065280,3.46358,2540.4,2540.1,0.3944]
[1726813065978,3.07,2540.4,2540.1,0.78802]
[1726813066379,3.07,2540.4,2540.2,0.3947]
[1726813069782,3.46358,2540.4,2540.2,0.3947]
[1726813071684,3.07,2540.4,2540.2,0.3947]
[1726813076892,3.46358,2540.4,2540.2,0.3947]
[1726813077596,3.07,2540.4,2540.2,0.3947]
[1726813077999,3.46358,2540.4,2540.2,0.3947]
[1726813079399,3.07,2540.4,2540.2,0.3947]
[1726813079799,3.46358,2540.4,2540.2,0.3947]
[1726813080998,3.07,2540.4,2540.2,0.3947]
[1726813081199,3.07,2540.4,2540.2,0.7883]
[1726813081806,3.07,2540.4,2540.2,0.3947]
[1726813082199,3.07,2540.4,2540.2,0.7883]
[1726813082395,3.07,2540.4,2540.2,0.3947]
[1726813082599,3.07,2540.6,2540.3,3.2078]
[1726813082896,3.07,2540.6,2540.4,0.399]
[1726813083203,3.2078,2541.0,2540.4,0.399]
[1726813083204,3.07,2540.8,2540.5,0.78576]
[1726813083504,3.07,2540.8,2540.5,0.8095]
[1726813084307,3.07,2540.8,2540.5,1.20306]
[1726813084505,3.07,2540.8,2540.6,0.39354]
[1726813084698,3.07,2540.8,2540.5,1.20305]
[1726813085203,3.07,2540.8,2540.5,0.8095]
[1726813085399,3.07,2540.6,2540.5,0.8095]
[1726813088295,3.46354,2540.6,2540.5,0.8095]
[1726813088503,3.07,2540.6,2540.5,0.8095]
[1726813088898,3.46354,2540.6,2540.5,0.8095]
[1726813089305,0.39359,2540.4,2540.0,3.2078]
[1726813089505,0.3936,2540.3,2540.1,1.1759]
[1726813089700,3.07,2540.2,2540.1,1.1759]
[1726813090808,3.07,2540.2,2539.7,1.02898904]
[1726813091013,3.46361,2540.2,2540.0,0.3964]
[1726813091207,3.46361,2540.2,2540.1,0.3781]
[1726813091913,3.07,2540.2,2540.1,0.3781]
[1726813094408,3.07,2540.3,2540.1,0.3781]
[1726813094804,3.07,2540.3,2540.2,0.78071]
[1726813096813,3.07,2540.6,2540.3,0.39358]
[1726813097010,3.07,2540.6,2540.4,0.3922]
[1726813097209,0.39352,2540.8,2540.4,0.7991]
[1726813097210,3.07,2540.8,2540.4,0.7991]
[1726813097410,3.07,2540.8,2540.4,1.19266]
[1726813098418,3.6013,2540.9,2540.5,3.2078]
[1726813098419,3.2078,2540.9,2540.5,3.2078]
[1726813098618,3.2078,2540.9,2540.8,0.39351]
[1726813098828,3.07,2541.2,2540.9,0.39349]
[1726813099023,3.2078,2541.5,2541.0,0.7736]
[1726813099215,3.07,2541.2,2541.0,0.7736]
[1726813099413,0.39345,2541.3,2541.0,0.7736]
[1726813099722,3.07,2541.1,2541.0,0.7736]
[1726813100517,3.07,2541.3,2541.0,0.7736]
[1726813101021,3.07,2541.4,2541.0,0.7736]
[1726813103312,3.07,2541.4,2541.0,1.16707]
[1726813103514,3.07,2541.2,2541.0,0.7736]
[1726813106626,0.39341,2541.5,2541.0,0.7736]
[1726813106825,3.07,2541.3,2541.0,0.7736]
[1726813107819,0.39341,2541.5,2541.0,0.7736]
[1726813107820,3.07,2541.2,2541.0,0.7736]
[1726813108019,0.39347,2541.1,2541.0,0.3922]
[1726813108724,7.143,2541.1,2540.5,0.4006]
[1726813109020,3.07,2540.7,2540.6,0.4148]
[1726813113731,3.07,2540.7,2540.1,3.07]
[1726813113732,7.006,2540.7,2539.9,3.2988]
[1726813114025,3.07,2540.2,2540.1,0.4065]
[1726813115125,3.07,2540.4,2540.1,0.4065]
[1726813118228,3.2078,2540.5,2540.1,0.4065]
[1726813118229,0.3936,2540.3,2540.1,0.4065]
[1726813118425,3.07,2540.2,2540.1,0.4065]
[1726813119633,1.18367,2540.6,2540.1,4.3433]
[1726813119634,3.60135,2540.6,2540.1,4.3433]
[1726813119829,3.07,2540.7,2540.2,3.6014]
[1726813120040,0.2002,2541.0,2540.3,0.3945]
[1726813120340,3.07,2540.8,2540.3,0.78808]
[1726813120632,0.0099,2541.0,2540.4,0.394]
[1726813120837,3.07,2540.6,2540.5,3.2078]
[1726813121628,3.46354,2540.6,2540.5,3.2078]
[1726813121831,3.07,2540.6,2540.5,3.2078]
[1726813123031,3.46354,2540.6,2540.5,3.2078]
[1726813123430,3.07,2540.6,2540.5,3.2078]
[1726813123730,3.46354,2540.6,2540.5,3.2078]
[1726813124533,3.07,2540.6,2540.5,3.2078]
[1726813127025,3.46354,2540.6,2540.5,3.2078]
[1726813127232,7.39954,2540.6,2540.5,3.2078]
[1726813127637,0.39357,2540.4,2540.3,0.8027]
[1726813127941,3.07,2540.6,2540.3,0.8027]
[1726813128132,0.39357,2540.4,2540.3,0.8027]
[1726813129135,3.07,2540.6,2540.3,0.8027]
[1726813129329,0.39357,2540.4,2540.3,0.8027]
[1726813131239,0.39357,2540.5,2540.3,0.8027]
[1726813132531,3.46355,2540.6,2540.3,0.8027]
[1726813134247,3.2078,2540.7,2540.3,0.8027]
[1726813134434,3.07,2540.8,2540.3,4.40408]
[1726813134642,3.46352,2540.8,2540.3,4.40408]
[1726813135337,3.07,2540.8,2540.4,0.39357]
[1726813135636,3.07,2540.8,2540.5,0.80435]
[1726813136040,3.07,2540.8,2540.5,0.4108]
[1726813136935,3.46352,2540.8,2540.5,0.4108]
[1726813138035,3.07,2540.8,2540.5,0.4108]
[1726813139345,3.46352,2540.8,2540.5,0.4108]
[1726813139536,3.07,2540.8,2540.5,0.4108]
[1726813140744,0.39351,2540.8,2540.5,0.4108]
[1726813140945,3.07,2540.7,2540.5,0.4108]
[1726813144153,0.39351,2540.9,2540.5,0.4108]
[1726813144350,3.07,2540.8,2540.5,0.4108]
[1726813145538,6.11355,2541.5,2540.5,0.4108]
[1726813145539,8.31227,2541.7,2540.7,3.2078]
[1726813145738,8.31227,2541.7,2540.8,0.7922]
[1726813145739,3.07,2541.3,2540.8,0.7922]
[1726813146045,0.0099,2541.5,2540.9,0.3813]
[1726813146241,0.1903,2541.6,2540.9,0.3813]
[1726813146437,1.42,2541.3,2540.9,0.77479]
[1726813146837,1.42,2541.3,2541.0,3.2078]
[1726813147845,1.42,2541.3,2541.0,3.60127]
[1726813148051,0.5837,2541.6,2541.0,3.60127]
[1726813148052,3.07,2541.4,2541.0,3.60127]
[1726813148850,3.60118,2541.7,2541.0,3.2078]
[1726813149048,6.2778,2541.7,2541.0,3.2078]
[1726813149258,6.2778,2541.7,2541.0,6.2778]
[1726813149454,0.1903,2541.9,2541.3,3.2078]
[1726813149748,3.07,2541.9,2541.5,0.3934]
[1726813149941,0.40322,2542.1,2541.6,3.2078]
[1726813149942,3.07,2542.1,2541.6,3.2078]
[1726813150251,0.39329,2542.3,2541.7,3.07]
[1726813150554,7.191,2542.4,2541.8,0.77166]
[1726813150555,3.46327,2542.4,2541.8,0.77166]
[1726813150854,3.46327,2542.4,2541.9,0.7682]
[1726813151153,3.07,2542.3,2541.9,0.7682]
[1726813151542,3.07,2542.3,2541.9,0.3872]
[1726813151748,3.07,2542.1,2541.3,7.79923]
[1726813152053,3.07,2542.1,2541.5,0.4142]
[1726813152054,3.07,2541.9,2541.5,0.4142]
[1726813152245,5.30431,2542.6,2541.6,0.3801]
[1726813152246,3.07,2542.0,2541.6,0.3801]
[1726813152445,3.07,2542.0,2541.6,3.98128]
[1726813152859,3.07,2542.0,2541.6,3.5879]
[1726813153051,3.07,2542.0,2541.6,0.3801]
[1726813154458,3.07,2542.0,2541.7,3.2078]
[1726813154656,0.39332,2542.1,2541.7,3.2078]
[1726813154849,0.39332,2542.1,2541.8,0.3923]
[1726813155046,3.07,2542.2,2541.8,0.3923]
[1726813155255,0.39331,2542.1,2541.8,0.3923]
[1726813155550,3.07,2542.2,2541.8,0.3923]
[1726813155551,0.3933,2542.2,2541.8,0.3923]
[1726813155754,3.4633,2542.2,2541.8,0.3923]
[1726813156557,3.07,2542.2,2541.8,0.3923]
[1726813156857,3.4633,2542.2,2541.8,0.3923]
[1726813157250,3.07,2542.2,2541.8,0.3923]